{"text_format":"1","workbook":"xlsx","n_sheets":3,"sheets":["Arkusz1","Arkusz2","Arkusz3"],"not_rendered":{"charts":0,"images":1,"macros":0,"external_links":0,"defined_names":0,"comments":0,"pivot_tables":0},"unopened":[],"bounds":{"document_bytes":16777216,"sheet_cells":100000,"rows_first":2000,"rows_last":500,"rows_between":2000,"halvings":0,"cell_chars":16384,"cell_head_chars":4096},"cells_cut":0,"cells_raw":0,"read":"whole","date_system":"1900"}

{"sheet":"Arkusz1","index":0,"n_rows":40,"n_cols":9,"rows_kept":40,"cut":false,"hidden":false,"merged":[[32,0,32,4],[32,6,32,7],[33,0,33,7],[39,3,40,7],[28,8,29,8],[30,0,30,4],[30,6,30,7],[31,0,31,4],[31,6,31,7],[23,0,23,4],[27,6,27,7],[28,0,29,4],[28,5,29,5],[28,6,29,7],[21,0,21,1],[21,2,21,3],[22,0,22,1],[22,2,22,3],[19,0,19,1],[19,2,19,3],[20,0,20,1],[20,2,20,3],[13,8,14,8],[15,6,16,7],[17,0,17,5],[18,0,18,1],[18,2,18,3],[12,0,12,1],[12,2,12,3],[12,6,12,7],[13,0,14,5],[13,6,14,7],[10,0,10,1],[10,2,10,3],[10,6,10,7],[11,0,11,1],[11,2,11,3],[11,6,11,7],[8,0,8,1],[8,2,8,3],[8,6,8,7],[9,0,9,1],[9,2,9,3],[9,6,9,7],[6,0,6,1],[6,2,6,3],[6,6,6,7],[7,0,7,1],[7,2,7,3],[7,6,7,7],[4,0,4,1],[4,2,4,3],[4,6,4,7],[5,0,5,1],[5,2,5,3],[5,6,5,7],[0,0,1,8],[2,0,2,8],[3,0,3,1],[3,2,3,3],[3,6,3,7]]}
["Kalkulacja kosztów wykonania zamówienia publicznego "]
[]
[]
["Wyszczególnienie",null,"Liczba pokoi/\nosób/dni\nZamówienie podstawowe",null,"Maksymalna liczba pokoi/\nosób/dni po zastosowaniu prawa opcji","Cena jednostkowa brutto \n(pokój/1 osoba/sala)","Łączna wartość brutto zamówienia podstawowego ",null,"Łączna maksymalna wartość zamówienia po zastosowaniu prawa opcji "]
[null,null,1,null,3,4,"5=1*4",null,"7=3*4"]
["Pokój jednoosobowy\n(1 nocleg  dla 1 osoby)",null,330,null,440,null,{"$f":"ROUND(C6*F6,2)","v":0},null,{"$f":"ROUND(E6*F6,2)","v":0}]
["Śniadanie \n(1 śniadanie dla 1 osoby)",null,330,null,440,null,0,null,0]
["Przerwy kawowe \n(cena za 1 przerwę kawową dla 1 osoby - 6 przerw na szkoleniu)",null,1980,null,2640,null,0,null,0]
["Obiady (cena za 1 obiad dla 1 osoby - 2 obiady na szkoleniu)",null,660,null,880,null,0,null,0]
["Kolacja (1 kolacja dla jednej osoby)",null,330,null,440,null,0,null,0]
["Wynajęcie sali szkoleniowej dla max 50 osób (cena za 1 dzień )",null,22,null,22,null,0,null,0]
["Długopis (1 dlugopis dla 1 osoby)",null,330,null,440,null,0,null,0]
["Ubezpieczenie (2-dniowe dla 1 osoby)",null,330,null,440,null,0,null,0]
["Łączna wartość brutto wszystkich pozycji z zamówienia ",null,null,null,null,null,{"$f":"SUM(G6:H13)","v":0},null,{"$f":"SUM(I6:I13)","v":0}]
[]
[null,null,null,null,null,null,"Powyższą wartość należy wpisać do formularza ofertowgo"]
[]
["Opcja"]
["Wyszczególnienie",null,"Maksymalna liczba szkoleń/\nkm/osób",null,"Cena jednostkowa brutto (pokój/1 osoba/sala/ cały pobyt)","Łączna wartość brutto"]
[null,null,1,null,2,"3=2*1"]
["Transport dla max 40 osób– cena za podstawienie autokaru ",null,11,null,null,{"$f":"C21*E21","v":0}]
["Transport dla max 40 osób - stawka za 1 km (max 130 km na jednym szkoleniu)",null,2860,null,null,{"$f":"C22*E22","v":0}]
["Suchy prowiant (1 paczka z prowiantem dla 1 osoby)",null,440,null,null,{"$f":"C23*E23","v":0}]
["Łączna wartość brutto wszystkich pozycji opcji ",null,null,null,null,{"$f":"SUM(F21:F23)","v":0}]
[]
[]
[]
[null,null,null,null,null,"Liczba sal/przerw kawowych","Cena jednostkowa usługi",null,"Wartość "]
["Łączna maksymalna wartość brutto wszystkich pozycji zamówienia podstawowego",null,null,null,null,"n/d","n/d",null,{"$f":"I14","v":0}]
[]
["Łączna maksymalna wartość brutto wszystkich pozycji opcji",null,null,null,null,"n/d","n/d",null,{"$f":"F24","v":0}]
["Pomniejszenie kwoty maksymalnej wynagrodzenia o niewykorzystanie sal szkoleniowych drugiego dnia przy zastosowaniu opcji wyjazdu terenowego na wszystkich szkoleniach ",null,null,null,null,11,{"$f":"F11","v":0},null,{"$f":"-(F32*G32)","v":0}]
["Pomniejszenie kwoty maksymalnej wynagrodzenia o niewykorzystane przerwy kawowe drugiego dnia po zastosowaniu opcji wyjazdu terenowego na wszystkich szkoleniach",null,null,null,null,1320,{"$f":"F8","v":0},null,{"$f":"-(F33*G33)","v":0}]
["Maksymalna wartość zamówienia brutto po zastosowaniu opcji wyjazdu terenowego oraz po zwiększeniu liczby uczestników do 440 (należy wpisać do formularza ofertowgo) ",null,null,null,null,null,null,null,{"$f":"SUM(I29:I33)","v":0}]
[]
[]
[]
[]
[]
[null,null,null,"Projekt LIFE15 GIE/PL/000758 pn. Masz prawo do skutecznej ochrony przyrody, finansowany ze środków Programu LIFE oraz ze środków Narodowego Funduszu Ochrony Środowiska i Gospodarki Wodnej."]

{"sheet":"Arkusz2","index":1,"n_rows":0,"n_cols":0,"rows_kept":0,"cut":false,"hidden":false,"merged":[]}

{"sheet":"Arkusz3","index":2,"n_rows":0,"n_cols":0,"rows_kept":0,"cut":false,"hidden":false,"merged":[]}